fUSD/lending_fUSD_20250215
["ID","MTS","AMOUNT","RATE_DAILY","PERIOD"]
[353131657,1739591435431,-500.0,0.00010998,2]
[353131658,1739591435441,-500.0,0.00010998,2]
[353131659,1739591435451,-532.13,0.00010998,2]
[353131660,1739591435461,-500.0,0.00010998,2]
[353131661,1739591435471,-500.0,0.00010998,2]
[353131662,1739591435480,-591.91,0.00010998,2]
[353131663,1739591435490,-500.0,0.00010998,2]
[353131664,1739591435499,-500.0,0.00010998,2]
[353131665,1739591435509,-579.85,0.00010998,2]
[353131666,1739591435518,-577.6,0.00010998,2]
[353131667,1739591435528,-500.0,0.00010998,2]
[353131668,1739591435538,-562.99,0.00010998,2]
[353131669,1739591435547,-500.0,0.00010998,2]
[353131670,1739591435558,-500.0,0.00010998,2]
[353131671,1739591435568,-947.28,0.00010998,2]
[353131672,1739591435578,-500.0,0.00010998,2]
[353131673,1739591435590,-500.0,0.00010998,2]
[353131674,1739591435600,-671.25,0.00010998,2]
[353131675,1739591435612,-500.0,0.00010998,2]
[353131676,1739591435622,-500.0,0.00010998,2]
[353131677,1739591435632,-500.0,0.00010998,2]
[353131678,1739591435642,-500.0,0.00010998,2]
[353131679,1739591435653,-500.0,0.00010998,2]
[353131680,1739591435667,-500.0,0.00010998,2]
[353131681,1739591435676,-500.0,0.00010998,2]
[353131682,1739591435686,-500.0,0.00010998,2]
[353131683,1739591435696,-500.0,0.00010998,2]
[353131684,1739591435707,-500.0,0.00010998,2]
[353131685,1739591435716,-500.0,0.00010998,2]
[353131686,1739591435726,-500.0,0.00010998,2]
[353131687,1739591435735,-500.0,0.00010998,2]
[353131688,1739591435747,-500.0,0.00010998,2]
[353131689,1739591435758,-500.0,0.00010998,2]
[353131690,1739591435767,-500.0,0.00010998,2]
[353131691,1739591435777,-500.0,0.00010998,2]
[353131692,1739591435787,-502.12962981,0.00010998,2]
[353131693,1739591435797,-689.14,0.00010998,2]
[353131694,1739591435806,-500.0,0.00010998,2]
[353131695,1739591435816,-500.0,0.00010998,2]
[353131696,1739591435825,-500.0,0.00010998,2]
[353131697,1739591435835,-500.77368885,0.00010998,2]
[353131698,1739591435845,-552.72,0.00010998,2]
[353131699,1739591435855,-500.0,0.00010998,2]
[353131700,1739591435865,-500.0,0.00010998,2]
[353131701,1739591435874,-500.0,0.00010998,2]
[353131702,1739591435884,-500.0,0.00010998,2]
[353131703,1739591435894,-660.67,0.00010998,2]
[353131704,1739591435904,-500.0,0.00010998,2]
[353131705,1739591435914,-500.0,0.00010998,2]
[353131706,1739591435923,-501.58157633,0.00010998,2]
[353131707,1739591435933,-501.56865156,0.00010998,2]
[353131708,1739591435943,-500.0,0.00010998,2]
[353131709,1739591435953,-500.0,0.00010998,2]
[353131710,1739591435963,-500.0,0.00010998,2]
[353131711,1739591435974,-500.0,0.00010998,2]
[353131712,1739591435984,-500.0,0.00010998,2]
[353131713,1739591435994,-500.0,0.00010998,2]
[353131714,1739591436222,-500.0,0.00010998,2]
[353131715,1739591436232,-500.0,0.00010998,2]
[353131716,1739591436242,-505.98,0.00010998,2]
[353131717,1739591436252,-500.0,0.00010998,2]
[353131718,1739591436262,-500.68547401,0.00010998,2]
[353131719,1739591436274,-603.01,0.00010998,2]
[353131720,1739591436283,-500.93587866,0.00010998,2]
[353131721,1739591436293,-500.0,0.00010998,2]
[353131722,1739591436303,-500.0,0.00010998,2]
[353131723,1739591436313,-500.0,0.00010998,2]
[353131724,1739591436323,-500.0,0.00010998,2]
[353131725,1739591436333,-500.0,0.00010998,2]
[353131726,1739591436342,-500.0,0.00010998,2]
[353131727,1739591436352,-500.0,0.00010998,2]
[353131728,1739591436362,-500.89938504,0.00010998,2]
[353131729,1739591436372,-503.03,0.00010998,2]
[353131730,1739591436382,-500.0,0.00010998,2]
[353131731,1739591436391,-500.0,0.00010998,2]
[353131732,1739591436401,-500.0,0.00010998,2]
[353131733,1739591436411,-500.0,0.00010998,2]
[353131734,1739591436421,-500.0,0.00010998,2]
[353131735,1739591436430,-500.0,0.00010998,2]
[353131736,1739591436439,-500.0,0.00010998,2]
[353131737,1739591436449,-501.16056252,0.00010998,2]
[353131738,1739591436459,-500.0,0.00010998,2]
[353131739,1739591436468,-500.0,0.00010998,2]
[353131740,1739591436483,-500.53675428,0.00010998,2]
[353131741,1739591436493,-500.0,0.00010998,2]
[353131742,1739591436503,-500.0,0.00010998,2]
[353131743,1739591436512,-698.83,0.00010998,2]
[353131744,1739591436522,-504.80360798,0.00010998,2]
[353131745,1739591436532,-500.0,0.00010998,2]
[353131746,1739591436543,-500.0,0.00010998,2]
[353131747,1739591436553,-500.0,0.00010998,2]
[353131748,1739591436564,-500.0,0.00010998,2]
[353131749,1739591436574,-501.07272517,0.00010998,2]
[353131750,1739591436584,-500.0,0.00010998,2]
[353131751,1739591436594,-500.0,0.00010998,2]
[353131752,1739591436603,-502.45197475,0.00010998,2]
[353131753,1739591436614,-1286.29,0.00010998,2]
[353131754,1739591436625,-500.0,0.00010998,2]
[353131755,1739591436635,-500.0,0.00010998,2]
[353131756,1739591436645,-500.0,0.00010998,2]
[353131757,1739591436657,-500.0,0.00010998,2]
[353131758,1739591436668,-502.21191946,0.00010998,2]
[353131759,1739591436678,-957.51,0.00010998,2]
[353131760,1739591436689,-500.0,0.00010998,2]
[353131761,1739591436699,-500.0,0.00010998,2]
[353131762,1739591436709,-500.0,0.00010998,2]
[353131763,1739591436719,-604.8,0.00010998,2]
[353131764,1739591436730,-500.0,0.00010998,2]
[353131765,1739591436740,-590.77,0.00010998,2]
[353131766,1739591436751,-500.70555518,0.00010998,2]
[353131767,1739591436760,-500.0,0.00010998,2]
[353131768,1739591436770,-502.91347695,0.00010998,2]
[353131769,1739591436780,-500.0,0.00010998,2]
[353131770,1739591436791,-500.0,0.00010998,2]
[353131771,1739591436801,-500.0,0.00010998,2]
[353131772,1739591436811,-577.21,0.00010998,2]
[353131773,1739591436822,-500.0,0.00010998,2]
[353131774,1739591436832,-500.0,0.00010998,2]
[353131775,1739591436842,-500.0,0.00010998,2]
[353131776,1739591436853,-500.0,0.00010998,2]
[353131777,1739591436863,-1362.33,0.00010998,2]
[353131778,1739591436873,-500.94,0.00010998,2]
[353131779,1739591436882,-523.50946812,0.00010998,2]
[353131780,1739591436892,-500.0,0.00010998,2]
[353131781,1739591436902,-500.0,0.00010998,2]
[353131782,1739591436912,-500.0,0.00010998,2]
[353131783,1739591436921,-500.0,0.00010998,2]
[353131784,1739591436931,-279.00065952,0.00010998,2]
[353131785,1739591436941,-537.23,0.00010998,2]
[353131786,1739591436952,-500.0,0.00010998,2]
[353131787,1739591436962,-507.79,0.00010998,2]
[353131788,1739591436971,-500.0,0.00010998,2]
[353131789,1739591436982,-500.0,0.00010998,2]
[353131790,1739591436996,-502.03170856,0.00010998,2]
[353131791,1739591437005,-500.0,0.00010998,2]
[353131792,1739591437015,-504.69659188,0.00010998,2]
[353131793,1739591437024,-503.03335389,0.00010998,2]
[353131794,1739591437033,-500.0,0.00010998,2]
[353131795,1739591437043,-1093.04,0.00010998,2]
[353131796,1739591437053,-750.63,0.00010998,2]
[353131797,1739591437063,-500.0,0.00010998,2]
[353131798,1739591437073,-500.0,0.00010998,2]
[353131799,1739591437083,-500.0,0.00010998,2]
[353131800,1739591437093,-586.0,0.00010998,2]
[353131801,1739591437103,-504.48376314,0.00010998,2]
[353131802,1739591437113,-500.0,0.00010998,2]
[353131803,1739591437123,-500.0,0.00010998,2]
[353131804,1739591437132,-503.69624726,0.00010998,2]
[353131805,1739591437143,-500.0,0.00010998,2]
[353131806,1739591437153,-1563.12,0.00010998,2]
[353131807,1739591437163,-500.0,0.00010998,2]
[353131808,1739591437172,-500.0,0.00010998,2]
[353131809,1739591437183,-668.95,0.00010998,2]
[353131810,1739591437192,-459.7361365,0.00010998,2]
[353131811,1739591437203,-500.0,0.00010998,2]
[353131812,1739591437213,-502.78525777,0.00010998,2]
[353131813,1739591437223,-500.0,0.00010998,2]
[353131814,1739591437233,-501.38424913,0.00010998,2]
[353131815,1739591437244,-500.0,0.00010998,2]
[353131816,1739591437253,-365.37518887,0.00010998,2]
[353131817,1739591437263,-500.0,0.00010998,2]
[353131818,1739591437273,-503.48080956,0.00010998,2]
[353131819,1739591437284,-500.0,0.00010998,2]
[353131820,1739591437294,-500.0,0.00010998,2]
[353131821,1739591437305,-290.36047516,0.00010998,2]
[353131822,1739591437315,-504.0856162,0.00010998,2]
[353131823,1739591437328,-500.0,0.00010998,2]
[353131824,1739591437338,-500.0,0.00010998,2]
[353131825,1739591437348,-502.89201264,0.00010998,2]
[353131826,1739591437359,-500.0,0.00010998,2]
[353131827,1739591437368,-500.0,0.00010998,2]
[353131828,1739591437378,-984.49,0.00010998,2]
[353131829,1739591437388,-500.0,0.00010998,2]
[353131830,1739591437398,-500.0,0.00010998,2]
[353131831,1739591437408,-815.22,0.00010998,2]
[353131832,1739591437419,-500.0,0.00010998,2]
[353131833,1739591437429,-500.0,0.00010998,2]
[353131834,1739591437439,-500.0,0.00010998,2]
[353131835,1739591437448,-500.0,0.00010998,2]
[353131836,1739591437459,-500.0,0.00010998,2]
[353131837,1739591437469,-500.0,0.00010998,2]
[353131838,1739591437478,-500.0,0.00010998,2]
[353131839,1739591437489,-704.61,0.00010998,2]
[353131840,1739591437512,-500.0,0.00010998,2]
[353131841,1739591437523,-1218.57,0.00010998,2]
[353131842,1739591437533,-500.0,0.00010998,2]
[353131843,1739591437543,-500.0,0.00010998,2]
[353131844,1739591437554,-500.0,0.00010998,2]
[353131845,1739591437565,-500.0,0.00010998,2]
[353131846,1739591437575,-500.0,0.00010998,2]
[353131847,1739591437587,-1115.38,0.00010998,2]
[353131848,1739591437597,-500.0,0.00010998,2]
[353131849,1739591437607,-501.76978383,0.00010998,2]
[353131850,1739591437618,-501.87698695,0.00010998,2]
[353131851,1739591437628,-500.0,0.00010998,2]
[353131852,1739591437638,-500.0,0.00010998,2]
[353131853,1739591437649,-500.55813872,0.00010998,2]
[353131854,1739591437662,-544.05,0.00010998,2]
[353131855,1739591437672,-504.79050619,0.00010998,2]
[353131856,1739591437683,-500.91461331,0.00010998,2]
[353131857,1739591437694,-500.0,0.00010998,2]
[353131858,1739591437706,-500.0,0.00010998,2]
[353131859,1739591437717,-500.0,0.00010998,2]
[353131860,1739591437728,-500.6436692,0.00010998,2]
[353131861,1739591437743,-198.54088068,0.00010998,2]
[353131862,1739591437754,-500.0,0.00010998,2]
[353131863,1739591437764,-1344.0,0.00010998,2]
[353131864,1739591437775,-500.0,0.00010998,2]
[353131865,1739591437786,-500.0,0.00010998,2]
[353131866,1739591437796,-500.0,0.00010998,2]
[353131867,1739591437806,-500.0,0.00010998,2]
[353131868,1739591437817,-500.0,0.00010998,2]
[353131869,1739591437827,-500.0,0.00010998,2]
[353131870,1739591437838,-500.0,0.00010998,2]
[353131871,1739591437848,-500.0,0.00010998,2]
[353131872,1739591437858,-500.0,0.00010998,2]
[353131873,1739591437868,-500.0,0.00010998,2]
[353131874,1739591437878,-500.0,0.00010998,2]
[353131875,1739591437888,-500.0,0.00010998,2]
[353131876,1739591437898,-500.0,0.00010998,2]
[353131877,1739591437908,-500.0,0.00010998,2]
[353131878,1739591437919,-500.0,0.00010998,2]
[353131879,1739591437929,-500.0,0.00010998,2]
[353131880,1739591437939,-500.0,0.00010998,2]
[353131882,1739591437949,-1591.15,0.00010998,2]
[353131883,1739591437959,-500.0,0.00010998,2]
[353131884,1739591437970,-500.0,0.00010998,2]
[353131885,1739591437980,-512.64630219,0.00010998,2]
[353131886,1739591437990,-500.0,0.00010998,2]
[353131887,1739591438006,-500.0,0.00010998,2]
[353131888,1739591438017,-500.0,0.00010998,2]
[353131889,1739591438028,-500.0,0.00010998,2]
[353131890,1739591438038,-500.0,0.00010998,2]
[353131891,1739591438049,-500.0,0.00010998,2]
[353131893,1739591438060,-500.0,0.00010998,2]
[353131894,1739591438070,-296.8214476,0.00010998,2]
[353131895,1739591438081,-500.0,0.00010998,2]
[353131896,1739591438091,-500.0,0.00010998,2]
[353131897,1739591438101,-2801.04,0.00010998,2]
[353131898,1739591438112,-1185.61,0.00010998,2]
[353131899,1739591438122,-500.0,0.00010998,2]
[353131900,1739591438133,-500.0,0.00010998,2]
[353131901,1739591438143,-606.72,0.00010998,2]
[353131902,1739591438153,-504.76528779,0.00010998,2]
[353131903,1739591438164,-500.0,0.00010998,2]
[353131904,1739591438174,-500.0,0.00010998,2]
[353131905,1739591438184,-500.0,0.00010998,2]
[353131906,1739591438194,-558.56,0.00010998,2]
[353131907,1739591438204,-500.0,0.00010998,2]
[353131908,1739591438215,-501.29979011,0.00010998,2]
[353131909,1739591438225,-500.0,0.00010998,2]
[353131910,1739591438236,-1294.83,0.00010998,2]
[353131911,1739591438246,-500.0,0.00010998,2]
[353131912,1739591438256,-506.97036632,0.00010998,2]
[353131913,1739591438266,-500.0,0.00010998,2]
[353131914,1739591438277,-500.0,0.00010998,2]
[353131915,1739591438287,-500.0,0.00010998,2]
[353131916,1739591438298,-580.52,0.00010998,2]
[353131917,1739591438311,-500.0,0.00010998,2]
[353131918,1739591438323,-500.0,0.00010998,2]
[353131920,1739591438334,-500.0,0.00010998,2]
[353131922,1739591438344,-500.0,0.00010998,2]
[353131924,1739591438354,-500.0,0.00010998,2]
[353131926,1739591438365,-500.0,0.00010998,2]
[353131928,1739591438375,-504.10972276,0.00010998,2]
[353131930,1739591438385,-500.0,0.00010998,2]
[353131931,1739591438395,-531.67,0.00010998,2]
[353131934,1739591438404,-1190.27,0.00010998,2]
[353131936,1739591438415,-500.0,0.00010998,2]
[353131938,1739591438425,-500.0,0.00010998,2]
[353131940,1739591438434,-500.0,0.00010998,2]
[353131942,1739591438444,-506.351697,0.00010998,2]
[353131944,1739591438454,-208.1565642,0.00010998,2]
[353131946,1739591438463,-500.38969011,0.00010998,2]
[353131948,1739591438473,-500.34841228,0.00010998,2]
[353131950,1739591438483,-617.66776404,0.00010998,2]
[353131952,1739591438493,-500.0,0.00010998,2]
[353131954,1739591438508,-500.0,0.00010998,2]
[353131956,1739591438518,-500.0,0.00010998,2]
[353131958,1739591438529,-500.0,0.00010998,2]
[353131960,1739591438539,-500.0,0.00010998,2]
[353131963,1739591438549,-903.09,0.00010998,2]
[353131965,1739591438560,-500.0,0.00010998,2]
[353131967,1739591438571,-1839.4,0.00010998,2]
[353131969,1739591438581,-500.0,0.00010998,2]
[353131971,1739591438591,-500.0,0.00010998,2]
[353131973,1739591438601,-500.0,0.00010998,2]
[353131975,1739591438611,-500.0,0.00010998,2]
[353131977,1739591438622,-500.0,0.00010998,2]
[353131979,1739591438632,-500.0,0.00010998,2]
[353131981,1739591438642,-500.0,0.00010998,2]
[353131983,1739591438653,-500.0,0.00010998,2]
[353131986,1739591438667,-500.0,0.00010998,2]
[353131988,1739591438677,-505.42795948,0.00010998,2]
[353131990,1739591438687,-500.0,0.00010998,2]
[353131992,1739591438698,-500.0,0.00010998,2]
[353131994,1739591438709,-578.27,0.00010998,2]
[353131996,1739591438719,-500.0,0.00010998,2]
[353131998,1739591438730,-584.53,0.00010998,2]
[353132012,1739591438861,-738.04,0.00010998,2]
[353132014,1739591438870,-500.0,0.00010998,2]
[353132015,1739591438880,-505.73605348,0.00010998,2]
[353132016,1739591438889,-592.01,0.00010998,2]
[353132017,1739591438898,-500.0,0.00010998,2]
[353132018,1739591438907,-504.39821729,0.00010998,2]
[353132019,1739591438917,-2063.5066624,0.00010999,2]
[353132020,1739591438927,-714.96,0.00010999,2]
[353132021,1739591438935,-1021.72,0.00010999,2]
[353132022,1739591438945,-683.57,0.00010999,2]
[353132023,1739591438954,-500.0,0.00010999,2]
[353132024,1739591438964,-693.308806,0.00010999,2]
[353132025,1739591438977,-570.01,0.00010999,2]
[353132026,1739591438987,-743.73,0.00010999,2]
[353132027,1739591438996,-800.056383,0.00010999,2]
[353132028,1739591439005,-500.0,0.00010999,2]
[353132029,1739591439014,-990.3,0.00010999,2]
[353132031,1739591439024,-163.493181,0.00010999,2]
[353132033,1739591439034,-692.77,0.00010999,2]
[353132035,1739591439043,-842.37,0.00010999,2]
[353132037,1739591439052,-500.0,0.00010999,2]
[353132039,1739591439061,-1801.48,0.00010999,2]
[353132041,1739591439071,-804.54,0.00010999,2]
[353132043,1739591439081,-872.2,0.00010999,2]
[353132045,1739591439090,-798.02,0.00010999,2]
[353132047,1739591439099,-150.868918,0.00010999,2]
[353132049,1739591439110,-500.0,0.00010999,2]
[353132051,1739591439122,-748.58,0.00010999,2]
[353132053,1739591439132,-1014.18,0.00010999,2]
[353132055,1739591439141,-1017.03,0.00010999,2]
[353132057,1739591439151,-1255.81,0.00010999,2]
[353132059,1739591439160,-1436.53,0.00010999,2]
[353132061,1739591439170,-753.65,0.00010999,2]
[353132063,1739591439179,-1056.08,0.00010999,2]
[353132065,1739591439190,-1096.86,0.00010999,2]
[353132067,1739591439200,-1586.95,0.00010999,2]
[353132069,1739591439210,-1425.81,0.00010999,2]
[353132070,1739591439219,-500.0,0.00010999,2]
[353132071,1739591439230,-1424.59,0.00010999,2]
[353132072,1739591439239,-1506.77,0.00010999,2]
[353132073,1739591439249,-1319.52,0.00010999,2]
[353132074,1739591439259,-3808.84,0.00010999,2]
[353132075,1739591439268,-4116.26,0.00010999,2]
[353132076,1739591439277,-703.7,0.00010999,2]
[353132077,1739591439286,-157.932365,0.00010999,2]
[353132078,1739591439296,-500.0,0.00010999,2]
[353132079,1739591439305,-938.36,0.00010999,2]
[353132080,1739591439315,-1266.26,0.00010999,2]
[353132081,1739591439325,-1893.27,0.00010999,2]
[353132082,1739591439334,-941.53,0.00010999,2]
[353132083,1739591439344,-1835.22,0.00010999,2]
[353132084,1739591439353,-1202.58,0.00010999,2]
[353132085,1739591439362,-1074.75,0.00010999,2]
[353132086,1739591439372,-2312.02,0.00010999,2]
[353132087,1739591439383,-509.58,0.00010999,2]
[353132088,1739591439393,-77809.17754959,0.00011,2]
[353132089,1739591439402,-500.0,0.00011035,2]
[353132090,1739591439412,-500.0,0.00011035,2]
[353132091,1739591439422,-500.0,0.00011036,2]
[353132092,1739591439431,-570.59,0.00011036,2]
[353132093,1739591439441,-500.0,0.00011036,2]
[353132094,1739591439450,-601.34,0.00011036,2]
[353132095,1739591439460,-500.0,0.00011036,2]
[353132096,1739591439470,-815.15,0.00011036,2]
[353132097,1739591439479,-720.06,0.00011036,2]
[353132098,1739591439488,-717.7,0.00011036,2]
[353132099,1739591439501,-533.56,0.00011036,2]
[353132100,1739591439510,-665.5,0.00011036,2]
[353132101,1739591439520,-885.02,0.00011036,2]
[353132102,1739591439530,-643.05,0.00011036,2]
[353132103,1739591439540,-732.52,0.00011036,2]
[353132104,1739591439550,-500.0,0.00011036,2]
[353132105,1739591439560,-809.04,0.00011036,2]
[353132106,1739591439570,-579.99,0.00011036,2]
[353132107,1739591439580,-546.6,0.00011036,2]
[353132108,1739591439589,-500.0,0.00011036,2]
[353132109,1739591439599,-500.0,0.00011036,2]
[353132110,1739591439609,-500.0,0.00011036,2]
[353132111,1739591439618,-500.0,0.00011036,2]
[353132112,1739591439627,-500.0,0.00011036,2]
[353132113,1739591439637,-500.0,0.00011036,2]
[353132114,1739591439647,-500.0,0.00011036,2]
[353132115,1739591439657,-500.0,0.00011037,2]
[353132116,1739591439669,-500.0,0.00011037,2]
[353132117,1739591439678,-1337.98,0.0001104,2]
[353132118,1739591439688,-1516.1,0.0001104,2]
[353132119,1739591439698,-507.79,0.0001104,2]
[353132120,1739591439710,-671.15,0.0001104,2]
[353132121,1739591439719,-500.0,0.0001104,2]
[353132122,1739591439730,-952.81,0.0001104,2]
[353132123,1739591439741,-500.0,0.00011041,2]
[353132124,1739591439751,-500.0,0.00011041,2]
[353132125,1739591439761,-500.0,0.00011041,2]
[353132126,1739591439772,-549.29,0.00011041,2]
[353132127,1739591439782,-500.0,0.00011041,2]
[353132128,1739591439791,-500.0,0.00011041,2]
[353132129,1739591439801,-500.0,0.00011041,2]
[353132130,1739591439810,-500.0,0.00011041,2]
[353132131,1739591439820,-500.0,0.00011041,2]
[353132132,1739591439829,-500.0,0.00011041,2]
[353132133,1739591439839,-500.0,0.00011041,2]
[353132134,1739591439848,-500.0,0.00011041,2]
[353132135,1739591439858,-500.0,0.00011041,2]
[353132136,1739591439867,-505.18,0.00011041,2]
[353132137,1739591439877,-500.0,0.00011041,2]
[353132138,1739591439886,-500.0,0.00011041,2]
[353132139,1739591439896,-500.0,0.00011041,2]
[353132140,1739591439905,-500.0,0.00011041,2]
[353132141,1739591439915,-500.0,0.00011041,2]
[353132142,1739591439925,-500.0,0.00011041,2]
[353132143,1739591439936,-500.0,0.00011041,2]
[353132144,1739591439946,-500.0,0.00011041,2]
[353132145,1739591439957,-500.0,0.00011041,2]
[353132146,1739591439967,-500.0,0.00011041,2]
[353132147,1739591439976,-500.0,0.00011041,2]
[353132148,1739591439986,-500.0,0.00011041,2]
[353132149,1739591439995,-500.0,0.00011041,2]
[353132150,1739591440005,-500.0,0.00011041,2]
[353132151,1739591440015,-500.0,0.00011041,2]
[353132152,1739591440024,-500.0,0.00011041,2]
[353132153,1739591440034,-195.74709222,0.00011041,2]
[353132154,1739591440043,-500.0,0.00011041,2]
[353132155,1739591440052,-500.0,0.00011041,2]
[353132156,1739591440062,-500.0,0.00011041,2]
[353132157,1739591440072,-500.0,0.00011041,2]
[353132158,1739591440082,-500.0,0.00011041,2]
[353132159,1739591440092,-500.0,0.00011041,2]
[353132160,1739591440102,-500.0,0.00011041,2]
[353132161,1739591440111,-500.0,0.00011041,2]
[353132162,1739591440121,-500.0,0.00011041,2]
[353132163,1739591440133,-838.86,0.00011041,2]
[353132164,1739591440145,-500.0,0.00011041,2]
[353132165,1739591440155,-500.0,0.00011041,2]
[353132166,1739591440165,-500.0,0.00011041,2]
[353132167,1739591440175,-500.0,0.00011041,2]
[353132168,1739591440185,-500.0,0.00011041,2]
[353132169,1739591440194,-500.0,0.00011041,2]
[353132170,1739591440203,-500.0,0.00011041,2]
[353132171,1739591440212,-624.26,0.00011041,2]
[353132172,1739591440222,-1082.97,0.00011041,2]
[353132173,1739591440232,-500.0,0.00011041,2]
[353132174,1739591440242,-575.26572433,0.00011041,2]
[353132175,1739591440251,-500.0,0.00011041,2]
[353132176,1739591440260,-500.0,0.00011041,2]
[353132177,1739591440270,-500.0,0.00011041,2]
[353132178,1739591440279,-500.0,0.00011041,2]
[353132179,1739591440289,-500.0,0.00011041,2]
[353132180,1739591440298,-500.0,0.00011041,2]
[353132181,1739591440307,-500.0,0.00011041,2]
[353132182,1739591440316,-500.0,0.00011041,2]
[353132183,1739591440325,-392.30947692,0.00011041,2]
[353132184,1739591440336,-299.63612647,0.00011041,2]
[353132185,1739591440344,-500.0,0.00011041,2]
[353132186,1739591440354,-500.0,0.00011041,2]
[353132187,1739591440363,-500.0,0.00011041,2]
[353132188,1739591440372,-500.0,0.00011041,2]
[353132189,1739591440382,-500.0,0.00011041,2]
[353132190,1739591440391,-500.0,0.00011041,2]
[353132191,1739591440401,-787.99,0.00011041,2]
[353132192,1739591440412,-500.0,0.00011041,2]
[353132193,1739591440423,-500.0,0.00011041,2]
[353132194,1739591440433,-500.0,0.00011041,2]
[353132195,1739591440443,-500.0,0.00011041,2]
[353132196,1739591440453,-500.0,0.00011041,2]
[353132197,1739591440462,-500.0,0.00011041,2]
[353132198,1739591440472,-500.0,0.00011041,2]
[353132199,1739591440481,-500.0,0.00011041,2]
[353132200,1739591440491,-500.0,0.00011041,2]
[353132201,1739591440500,-512.32,0.00011041,2]
[353132202,1739591440510,-500.0,0.00011041,2]
[353132203,1739591440519,-198.40843777,0.00011041,2]
[353132204,1739591440528,-500.0,0.00011041,2]
[353132205,1739591440538,-500.0,0.00011041,2]
[353132206,1739591440547,-219.64836372,0.00011041,2]
[353132207,1739591440556,-500.0,0.00011041,2]
[353132208,1739591440566,-500.0,0.00011041,2]
[353132209,1739591440576,-500.0,0.00011041,2]
[353132210,1739591440587,-500.0,0.00011041,2]
[353132211,1739591440596,-500.0,0.00011041,2]
[353132212,1739591440606,-500.0,0.00011041,2]
[353132213,1739591440615,-500.0,0.00011041,2]
[353132214,1739591440625,-500.0,0.00011041,2]
[353132215,1739591440634,-500.0,0.00011041,2]
[353132216,1739591440644,-500.0,0.00011041,2]
[353132217,1739591440654,-500.0,0.00011041,2]
[353132218,1739591440667,-500.0,0.00011041,2]
[353132219,1739591440677,-500.0,0.00011041,2]
[353132220,1739591440687,-500.0,0.00011041,2]
[353132221,1739591440696,-500.0,0.00011041,2]
[353132222,1739591440706,-1101.17,0.00011041,2]
[353132223,1739591440716,-500.0,0.00011041,2]
[353132224,1739591440725,-500.0,0.00011041,2]
[353132225,1739591440735,-500.0,0.00011041,2]
[353132226,1739591440746,-500.0,0.00011041,2]
[353132227,1739591440756,-1132.9,0.00011041,2]
[353132228,1739591440766,-500.0,0.00011041,2]
[353132229,1739591440775,-1581.21,0.00011041,2]
[353132230,1739591440785,-500.0,0.00011041,2]
[353132231,1739591440796,-500.0,0.00011041,2]
[353132232,1739591440806,-500.0,0.00011041,2]
[353132233,1739591440816,-552.34,0.00011041,2]